fUST/lending_fUST_20250506
["ID","MTS","AMOUNT","RATE_DAILY","PERIOD"]
[360012732,1746478261468,-563.39,0.0003452,8]
[360012733,1746478261478,-400.0,0.0003452,8]
[360012734,1746478261488,-151.0,0.0003452,14]
[360012735,1746478261498,-151.0,0.0003452,14]
[360012736,1746478261509,-400.0,0.0003452,8]
[360012737,1746478261518,-400.0,0.0003452,8]
[360012738,1746478261527,-2969.31,0.0003452,8]
[360012739,1746478261537,-400.0,0.0003452,8]
[360012740,1746478261546,-401.12,0.0003452,8]
[360012741,1746478261556,-400.0,0.0003452,8]
[360012742,1746478261566,-400.0,0.0003452,8]
[360012743,1746478261575,-3050.13,0.0003452,8]
[360012744,1746478261584,-2910.47,0.0003452,8]
[360012745,1746478261593,-773.72,0.0003452,8]
[360012746,1746478261602,-1317.05,0.0003452,8]
[360012747,1746478261613,-2598.82,0.0003452,8]
[360012748,1746478261622,-400.0,0.0003452,8]
[360012749,1746478261632,-417.65,0.0003452,8]
[360012750,1746478261641,-552.03,0.0003452,8]
[360012751,1746478261651,-400.0,0.0003452,8]
[360012752,1746478261660,-303.430025,0.0003452,14]
[360012753,1746478261670,-400.0,0.0003452,8]
[360012754,1746478261679,-510.92,0.0003452,8]
[360012755,1746478261689,-2556.58,0.0003452,8]
[360012756,1746478261699,-303.430025,0.0003452,14]
[360012757,1746478261709,-151.0,0.0003452,14]
[360012758,1746478261719,-400.0,0.0003452,8]
[360012759,1746478261728,-717.05,0.0003452,8]
[360012760,1746478261738,-400.0,0.0003452,8]
[360012761,1746478261748,-2500.71,0.0003452,8]
[360012762,1746478261757,-1021.6,0.0003452,8]
[360012763,1746478261767,-446.45735129,0.0003452,8]
[360012764,1746478261776,-400.0,0.0003452,8]
[360012765,1746478261786,-400.0,0.0003452,8]
[360012766,1746478261796,-1929.98,0.0003452,8]
[360012767,1746478261805,-400.0,0.0003452,8]
[360012768,1746478261815,-419.74,0.0003452,8]
[360012769,1746478261825,-1671.31,0.0003452,8]
[360012770,1746478261835,-926.06,0.0003452,8]
[360012771,1746478261845,-400.0,0.0003452,8]
[360012772,1746478261854,-766.89,0.0003452,8]
[360012773,1746478261863,-1401.18,0.0003452,8]
[360012774,1746478261873,-400.0,0.0003452,8]
[360012775,1746478261883,-400.0,0.0003452,8]
[360012776,1746478261892,-2028.41,0.0003452,8]
[360012777,1746478261901,-1584.51,0.0003452,8]
[360012778,1746478261911,-2185.29,0.0003452,8]
[360012779,1746478261921,-1838.89,0.0003452,8]
[360012780,1746478261931,-704.07,0.0003452,8]
[360012781,1746478261941,-400.0,0.0003452,8]
[360012782,1746478261951,-426.69,0.0003452,8]
[360012783,1746478261962,-559.26,0.0003452,8]
[360012784,1746478261972,-1274.13,0.0003452,8]
[360012785,1746478261982,-2367.5,0.0003452,8]
[360012786,1746478261992,-400.0,0.0003452,8]
[360012787,1746478262001,-400.0,0.0003452,8]
[360012788,1746478262013,-1755.88,0.0003452,8]
[360012789,1746478262023,-400.0,0.0003452,8]
[360012790,1746478262032,-400.0,0.0003452,8]
[360012791,1746478262042,-444.31,0.0003452,8]
[360012792,1746478262052,-400.0,0.0003452,8]
[360012793,1746478262061,-558.74,0.0003452,8]
[360012794,1746478262071,-400.0,0.0003452,8]
[360012795,1746478262080,-400.0,0.0003452,8]
[360012796,1746478262090,-400.0,0.0003452,8]
[360012797,1746478262099,-1256.74,0.0003452,8]
[360012798,1746478262109,-804.09,0.0003452,8]
[360012799,1746478262118,-8688.02,0.0003452,8]
[360012800,1746478262127,-441.62,0.0003452,8]
[360012801,1746478262137,-598.18,0.0003452,8]
[360012802,1746478262146,-400.0,0.0003452,8]
[360012803,1746478262156,-975.04,0.0003452,8]
[360012804,1746478262166,-400.0,0.0003452,8]
[360012805,1746478262175,-411.14,0.0003452,8]
[360012806,1746478262185,-400.0,0.0003452,8]
[360012807,1746478262194,-400.0,0.0003452,8]
[360012808,1746478262204,-400.0,0.0003452,8]
[360012809,1746478262215,-400.0,0.0003452,8]
[360012810,1746478262225,-1817.46,0.0003452,8]
[360012811,1746478262235,-436.25,0.0003452,8]
[360012812,1746478262245,-400.0,0.0003452,8]
[360012813,1746478262254,-460.72,0.0003452,8]
[360012814,1746478262264,-3933.64,0.0003452,8]
[360012815,1746478262273,-491.82,0.0003452,8]
[360012816,1746478262283,-21455.99,0.0003452,8]
[360012817,1746478262292,-400.0,0.0003452,8]
[360012818,1746478262302,-400.0,0.0003452,8]
[360012819,1746478262312,-400.0,0.0003452,8]
[360012820,1746478262322,-699.19,0.0003452,8]
[360012821,1746478262331,-2258.67,0.0003452,8]
[360012822,1746478262341,-518.32,0.0003452,8]
[360012823,1746478262351,-866.11,0.0003452,8]
[360012824,1746478262360,-568.11,0.0003452,8]
[360012825,1746478262370,-1754.39,0.0003452,8]
[360012826,1746478262380,-493.11,0.0003452,8]
[360012827,1746478262389,-2851.87,0.0003452,8]
[360012828,1746478262398,-2650.13,0.0003452,8]
[360012830,1746478262408,-400.76,0.0003452,8]
[360012831,1746478262417,-400.0,0.0003452,8]
[360012833,1746478262427,-1576.25,0.0003452,8]
[360012835,1746478262437,-1372.78,0.0003452,8]
[360012837,1746478262446,-400.0,0.0003452,8]
[360012838,1746478262456,-999.53,0.0003452,8]
[360012839,1746478262466,-400.0,0.0003452,8]
[360012840,1746478262476,-516.04,0.0003452,8]
[360012841,1746478262485,-1376.17,0.0003452,8]
[360012842,1746478262494,-661.72,0.0003452,8]
[360012843,1746478262504,-6359.3,0.0003452,8]
[360012844,1746478262514,-940.89,0.0003452,8]
[360012845,1746478262523,-400.0,0.0003452,8]
[360012846,1746478262532,-8405.77,0.0003452,8]
[360012847,1746478262542,-400.0,0.0003452,8]
[360012848,1746478262552,-1110.72,0.0003452,8]
[360012849,1746478262561,-1647.64,0.0003452,8]
[360012851,1746478262570,-487.22,0.0003452,8]
[360012852,1746478262579,-400.0,0.0003452,2]
[360012853,1746478262588,-690.94,0.0003452,8]
[360012854,1746478262597,-2712.48,0.0003452,8]
[360012855,1746478262607,-400.0,0.0003452,8]
[360012856,1746478262616,-400.0,0.0003452,8]
[360012857,1746478262625,-2000.0,0.00034521,2]
[360012858,1746478262634,-1760.86,0.000346,30]
[360012859,1746478262643,-572.0772,0.0003472,30]
[360012860,1746478262653,-160.0,0.00034736,5]
[360012861,1746478262662,-1465.62,0.00034794,8]
[360012862,1746478262671,-151.0,0.00034794,14]
[360012863,1746478262680,-151.0,0.00034794,14]
[360012864,1746478262689,-151.0,0.00034794,14]
[360012865,1746478262698,-153.790371,0.00034794,7]
[360012866,1746478262708,-151.0,0.00034794,14]
[360012867,1746478262717,-400.0,0.00034794,8]
[360012868,1746478262726,-151.0,0.00034794,14]
[360012869,1746478262735,-400.0,0.00034794,8]
[360012870,1746478262744,-506.86,0.00034794,8]
[360012871,1746478262753,-400.0,0.00034794,8]
[360012872,1746478262762,-650.49,0.00034794,8]
[360012873,1746478262772,-400.0,0.00034794,8]
[360012874,1746478262782,-400.0,0.00034794,8]
[360012875,1746478262791,-400.0,0.00034794,8]
[360012876,1746478262800,-1120.46,0.00034794,8]
[360012877,1746478262809,-334.18324841,0.00034794,8]
[360012879,1746478262820,-753.58,0.00034794,8]
[360012880,1746478262831,-400.0,0.00034794,8]
[360012882,1746478262841,-507.88,0.00034794,8]
[360012884,1746478262850,-407.71421607,0.00034794,8]
[360012886,1746478262860,-1829.51,0.00034794,8]
[360012888,1746478262873,-400.0,0.00034794,8]
[360012889,1746478262883,-400.0,0.00034794,8]
[360012891,1746478262893,-1620.57,0.00034794,8]
[360012893,1746478262903,-592.51,0.00034794,8]
[360012895,1746478262912,-400.0,0.00034794,8]
[360012897,1746478262922,-537.21,0.00034794,8]
[360012899,1746478262932,-400.0,0.00034794,8]
[360012901,1746478262942,-2523.41,0.00034794,8]
[360012903,1746478262951,-547.87,0.00034794,8]
[360012905,1746478262965,-400.0,0.00034794,8]
[360012907,1746478262974,-400.0,0.00034794,8]
[360012909,1746478262983,-543.46,0.00034794,8]
[360012911,1746478262992,-400.0,0.00034794,8]
[360012913,1746478263003,-500.0,0.00034794,8]
[360012915,1746478263012,-400.0,0.00034794,8]
[360012917,1746478263022,-770.95,0.00034794,8]
[360012919,1746478263031,-1081.95,0.00034794,8]
[360012921,1746478263042,-151.0,0.00034794,14]
[360012923,1746478263052,-400.0,0.00034794,8]
[360012924,1746478263061,-250.90636921,0.00034794,8]
[360012925,1746478263071,-483.31,0.00034794,8]
[360012926,1746478263081,-1243.4,0.00034794,8]
[360012927,1746478263091,-1098.85,0.00034794,8]
[360012928,1746478263100,-482.85,0.00034794,8]
[360012929,1746478263111,-400.0,0.00034794,8]
[360012930,1746478263121,-566.0,0.00034794,8]
[360012931,1746478263132,-400.0,0.00034794,8]
[360012932,1746478263142,-400.0,0.00034794,8]
[360012933,1746478263152,-400.0,0.00034794,8]
[360012934,1746478263161,-400.0,0.00034794,8]
[360012935,1746478263171,-400.0,0.00034794,8]
[360012936,1746478263181,-400.0,0.00034794,8]
[360012937,1746478263190,-709.8,0.00034794,8]
[360012938,1746478263200,-400.0,0.00034794,8]
[360012939,1746478263210,-400.0,0.00034794,8]
[360012940,1746478263219,-4121.14,0.00034794,8]
[360012941,1746478263229,-400.0,0.00034794,8]
[360012942,1746478263239,-812.34,0.00034794,8]
[360012943,1746478263249,-654.51,0.00034794,8]
[360012944,1746478263258,-730.71,0.00034794,8]
[360012945,1746478263375,-400.0,0.00034794,8]
[360012946,1746478263386,-400.0,0.00034794,8]
[360012947,1746478263396,-400.0,0.00034794,8]
[360012948,1746478263406,-400.0,0.00034794,8]
[360012949,1746478263416,-400.0,0.00034794,8]
[360012950,1746478263426,-2752.23,0.00034794,2]
[360012951,1746478263436,-400.0,0.00034794,8]
[360012952,1746478263446,-432.56,0.00034794,8]
[360012953,1746478263455,-762.68,0.00034794,8]
[360012954,1746478263466,-431.94,0.00034794,8]
[360012955,1746478263475,-436.54,0.00034794,8]
[360012956,1746478263485,-488.58508241,0.00034794,8]
[360012957,1746478263495,-400.0,0.00034794,8]
[360012958,1746478263505,-673.29,0.00034794,8]
[360012959,1746478263514,-1252.09,0.00034794,8]
[360012960,1746478263524,-702.93,0.00034794,8]
[360012961,1746478263535,-400.0,0.00034794,8]
[360012962,1746478263544,-400.0,0.00034794,8]
[360012963,1746478263554,-1335.89,0.00034794,8]
[360012964,1746478263564,-400.0,0.00034794,8]
[360012965,1746478263574,-409.22,0.00034794,8]
[360012966,1746478263584,-400.0,0.00034794,8]
[360012967,1746478263594,-990.15,0.00034794,8]
[360012968,1746478263603,-400.0,0.00034794,8]
[360012969,1746478263613,-400.0,0.00034794,8]
[360012970,1746478263623,-784.71,0.00034794,8]
[360012971,1746478263633,-624.56,0.00034794,8]
[360012972,1746478263643,-411.93,0.00034794,8]
[360012973,1746478263653,-446.32,0.00034794,8]
[360012974,1746478263662,-500.9,0.00034794,8]
[360012975,1746478263672,-827.29,0.00034794,8]
[360012976,1746478263682,-530.84,0.00034794,8]
[360012977,1746478263692,-693.82,0.00034794,8]
[360012978,1746478263702,-612.41,0.00034794,8]
[360012979,1746478263713,-400.0,0.00034794,8]
[360012980,1746478263723,-461.37,0.00034794,8]
[360012981,1746478263733,-430.1,0.00034794,8]
[360012982,1746478263744,-400.0,0.00034794,8]
[360012983,1746478263754,-563.39,0.00034794,8]
[360012984,1746478263765,-400.0,0.00034794,8]
[360012985,1746478263776,-400.0,0.00034794,8]
[360012986,1746478263786,-400.0,0.00034794,8]
[360012987,1746478263796,-2969.31,0.00034794,8]
[360012988,1746478263806,-400.0,0.00034794,8]
[360012989,1746478263815,-401.12,0.00034794,8]
[360012990,1746478263825,-400.0,0.00034794,8]
[360012991,1746478263835,-400.0,0.00034794,8]
[360012992,1746478263845,-3050.13,0.00034794,8]
[360012993,1746478263854,-2910.47,0.00034794,8]
[360012994,1746478263864,-773.72,0.00034794,8]
[360012995,1746478263874,-151.0,0.00034794,14]
[360012996,1746478263883,-1317.05,0.00034794,8]
[360012997,1746478263894,-2598.82,0.00034794,8]
[360012998,1746478263904,-400.0,0.00034794,8]
[360012999,1746478263914,-417.65,0.00034794,8]
[360013000,1746478263925,-552.03,0.00034794,8]
[360013001,1746478263935,-400.0,0.00034794,8]
[360013002,1746478263945,-303.430025,0.00034794,14]
[360013003,1746478263956,-400.0,0.00034794,8]
[360013004,1746478263970,-510.92,0.00034794,8]
[360013005,1746478263981,-2556.58,0.00034794,8]
[360013006,1746478263991,-303.430025,0.00034794,14]
[360013007,1746478264002,-400.0,0.00034794,8]
[360013008,1746478264012,-717.05,0.00034794,8]
[360013009,1746478264021,-400.0,0.00034794,8]
[360013010,1746478264031,-2500.71,0.00034794,8]
[360013011,1746478264043,-1021.6,0.00034794,8]
[360013012,1746478264052,-400.0,0.00034794,8]
[360013013,1746478264062,-400.0,0.00034794,8]
[360013014,1746478264072,-1929.98,0.00034794,8]
[360013015,1746478264082,-400.0,0.00034794,8]
[360013016,1746478264092,-419.74,0.00034794,8]
[360013017,1746478264102,-1671.31,0.00034794,8]
[360013018,1746478264112,-926.06,0.00034794,8]
[360013019,1746478264121,-400.0,0.00034794,8]
[360013020,1746478264131,-766.89,0.00034794,8]
[360013021,1746478264141,-1401.18,0.00034794,8]
[360013022,1746478264151,-400.0,0.00034794,8]
[360013023,1746478264161,-400.0,0.00034794,8]
[360013024,1746478264169,-2028.41,0.00034794,8]
[360013025,1746478264179,-1584.51,0.00034794,8]
[360013026,1746478264189,-2185.29,0.00034794,8]
[360013027,1746478264198,-1838.89,0.00034794,8]
[360013028,1746478264208,-704.07,0.00034794,8]
[360013029,1746478264218,-400.0,0.00034794,8]
[360013030,1746478264228,-426.69,0.00034794,8]
[360013031,1746478264238,-559.26,0.00034794,8]
[360013032,1746478264247,-1274.13,0.00034794,8]
[360013033,1746478264257,-2367.5,0.00034794,8]
[360013034,1746478264267,-400.0,0.00034794,8]
[360013035,1746478264276,-400.0,0.00034794,8]
[360013036,1746478264286,-1755.88,0.00034794,8]
[360013037,1746478264296,-400.0,0.00034794,8]
[360013038,1746478264306,-400.0,0.00034794,8]
[360013039,1746478264315,-444.31,0.00034794,8]
[360013040,1746478264325,-400.0,0.00034794,8]
[360013041,1746478264334,-558.74,0.00034794,8]
[360013042,1746478264343,-400.0,0.00034794,8]
[360013043,1746478264352,-400.0,0.00034794,8]
[360013044,1746478264361,-400.0,0.00034794,8]
[360013045,1746478264371,-1256.74,0.00034794,8]
[360013046,1746478264380,-804.09,0.00034794,8]
[360013047,1746478264389,-8688.02,0.00034794,8]
[360013048,1746478264399,-441.62,0.00034794,8]
[360013049,1746478264408,-598.18,0.00034794,8]
[360013050,1746478264418,-400.0,0.00034794,8]
[360013051,1746478264427,-975.04,0.00034794,8]
[360013052,1746478264437,-400.0,0.00034794,8]
[360013053,1746478264446,-411.14,0.00034794,8]
[360013054,1746478264456,-400.0,0.00034794,8]
[360013055,1746478264467,-400.0,0.00034794,8]
[360013056,1746478264478,-400.0,0.00034794,8]
[360013057,1746478264487,-473.5415276,0.00034794,8]
[360013058,1746478264497,-1817.46,0.00034794,8]
[360013059,1746478264507,-151.0,0.00034794,14]
[360013060,1746478264517,-400.0,0.00034794,8]
[360013061,1746478264528,-436.25,0.00034794,8]
[360013062,1746478264538,-460.72,0.00034794,8]
[360013063,1746478264547,-3933.64,0.00034794,8]
[360013064,1746478264556,-491.82,0.00034794,8]
[360013065,1746478264565,-21455.99,0.00034794,8]
[360013066,1746478264575,-400.0,0.00034794,8]
[360013067,1746478264584,-400.0,0.00034794,8]
[360013068,1746478264593,-400.0,0.00034794,8]
[360013069,1746478264603,-699.19,0.00034794,8]
[360013070,1746478264612,-2258.67,0.00034794,8]
[360013071,1746478264621,-518.32,0.00034794,8]
[360013072,1746478264631,-866.11,0.00034794,8]
[360013073,1746478264641,-568.11,0.00034794,8]
[360013074,1746478264650,-1754.39,0.00034794,8]
[360013075,1746478264659,-493.11,0.00034794,8]
[360013076,1746478264669,-2851.87,0.00034794,8]
[360013077,1746478264679,-2650.13,0.00034794,8]
[360013078,1746478264688,-400.76,0.00034794,8]
[360013079,1746478264698,-400.0,0.00034794,8]
[360013080,1746478264708,-1576.25,0.00034794,8]
[360013081,1746478264718,-1372.78,0.00034794,8]
[360013082,1746478264728,-400.0,0.00034794,8]
[360013083,1746478264738,-999.53,0.00034794,8]
[360013084,1746478264749,-400.0,0.00034794,8]
[360013085,1746478264759,-516.04,0.00034794,8]
[360013086,1746478264769,-1376.17,0.00034794,8]
[360013087,1746478264779,-151.0,0.00034794,14]
[360013088,1746478264788,-661.72,0.00034794,8]
[360013089,1746478264799,-6359.3,0.00034794,8]
[360013090,1746478264808,-940.89,0.00034794,8]
[360013091,1746478264819,-8405.77,0.00034794,8]
[360013092,1746478264829,-400.0,0.00034794,8]
[360013093,1746478264838,-1110.72,0.00034794,8]
[360013094,1746478264848,-1647.64,0.00034794,8]
[360013095,1746478264858,-487.22,0.00034794,8]
[360013096,1746478264868,-445.695408,0.00034794,14]
[360013097,1746478264877,-151.0,0.00034794,14]
[360013098,1746478264886,-445.695408,0.00034794,14]
[360013099,1746478264896,-400.0,0.00034794,2]
[360013100,1746478264905,-690.94,0.00034794,8]
[360013101,1746478264914,-2712.48,0.00034794,8]
[360013102,1746478264924,-400.0,0.00034794,8]
[360013103,1746478264933,-400.0,0.00034794,8]
[360013104,1746478264943,-186.901476,0.00034794,14]
[360013105,1746478264952,-250.0,0.000348,14]
[360013106,1746478264964,-3149.86339391,0.0003487,4]
[360013107,1746478264973,-7219.73,0.000349,30]
[360013108,1746478264982,-3326.55,0.000349,7]
[360013109,1746478264991,-501.34714269,0.00034934,31]
[360013110,1746478265000,-80091.8175026,0.00034998,2]
[360013111,1746478265010,-151.0,0.00034998,14]
[360013112,1746478265019,-352.803023,0.00034998,14]
[360013113,1746478265028,-352.803023,0.00034998,14]
[360013114,1746478265039,-151.0,0.00034998,14]
[360013115,1746478265048,-151.0,0.00034998,14]
[360013116,1746478265058,-151.0,0.00034998,14]
[360013117,1746478265067,-9000.94289556,0.00035,4]
[360013118,1746478265076,-10609.06741123,0.00035,2]
[360013119,1746478265085,-3055.8954692,0.00035,30]
[360013120,1746478265094,-2510.99895943,0.00035,2]
[360013121,1746478265103,-210.59134804,0.00035,30]
[360013122,1746478265112,-1147.11588501,0.00035,7]
[360013123,1746478265121,-190.0175,0.00035,5]
[360013124,1746478265131,-151.0,0.00035,17]
[360013125,1746478265140,-246.3265,0.00035,5]
[360013126,1746478265149,-151.0,0.00035,14]
[360013127,1746478265158,-151.0,0.00035,14]
[360013128,1746478265167,-827.007674,0.00035,2]
[360013129,1746478265175,-160.0,0.00035,7]
[360013130,1746478265185,-160.0,0.00035,7]
[360013131,1746478265195,-421.83547488,0.00035,7]
[360013132,1746478265204,-182.23035355,0.00035,7]
[360013133,1746478265215,-841.77443764,0.00035,7]
[360013134,1746478265224,-10481.2031926,0.00035,30]
[360013135,1746478265233,-1465.62,0.00035068,8]
[360013136,1746478265243,-151.0,0.00035068,14]
[360013137,1746478265252,-151.0,0.00035068,14]
[360013138,1746478265261,-400.0,0.00035068,8]
[360013139,1746478265270,-400.0,0.00035068,8]
[360013140,1746478265280,-506.86,0.00035068,8]
[360013141,1746478265289,-400.0,0.00035068,8]
[360013142,1746478265298,-650.49,0.00035068,8]
[360013143,1746478265307,-400.0,0.00035068,8]
[360013144,1746478265320,-400.0,0.00035068,8]
[360013145,1746478265329,-400.0,0.00035068,8]
[360013146,1746478265338,-1120.46,0.00035068,8]
[360013147,1746478265347,-753.58,0.00035068,8]
[360013148,1746478265356,-400.0,0.00035068,8]
[360013149,1746478265366,-507.88,0.00035068,8]
[360013150,1746478265376,-1829.51,0.00035068,8]
[360013151,1746478265385,-186.13497407,0.00035068,8]
[360013152,1746478265394,-400.0,0.00035068,8]
[360013153,1746478265403,-1620.57,0.00035068,8]
[360013154,1746478265413,-592.51,0.00035068,8]
[360013155,1746478265422,-400.0,0.00035068,8]
[360013156,1746478265431,-537.21,0.00035068,8]
[360013157,1746478265544,-400.0,0.00035068,8]
[360013158,1746478265554,-2523.41,0.00035068,8]
[360013159,1746478265563,-547.87,0.00035068,8]
[360013160,1746478265573,-400.0,0.00035068,8]
[360013161,1746478265582,-400.0,0.00035068,8]
[360013162,1746478265592,-543.46,0.00035068,8]
[360013163,1746478265601,-400.0,0.00035068,8]
[360013164,1746478265610,-478.35473821,0.00035068,8]
[360013165,1746478265620,-770.95,0.00035068,8]
[360013166,1746478265629,-1081.95,0.00035068,8]
[360013167,1746478265639,-400.0,0.00035068,8]
[360013168,1746478265648,-483.31,0.00035068,8]
[360013169,1746478265658,-1243.4,0.00035068,8]
[360013170,1746478265667,-1098.85,0.00035068,8]
[360013171,1746478265676,-482.85,0.00035068,8]
[360013172,1746478265686,-400.0,0.00035068,8]
[360013173,1746478265695,-566.0,0.00035068,8]
[360013174,1746478265705,-400.0,0.00035068,8]
[360013175,1746478265717,-400.0,0.00035068,8]
[360013176,1746478265727,-400.0,0.00035068,8]
[360013177,1746478265737,-400.0,0.00035068,8]
[360013178,1746478265746,-400.0,0.00035068,8]
[360013179,1746478265756,-400.0,0.00035068,8]
[360013180,1746478265766,-709.8,0.00035068,8]
[360013181,1746478265776,-358.0,0.00035068,8]
[360013182,1746478265785,-358.0,0.00035068,8]
[360013183,1746478265795,-358.0,0.00035068,8]
[360013184,1746478265804,-358.0,0.00035068,8]
[360013185,1746478265814,-358.0,0.00035068,8]
[360013186,1746478265824,-358.0,0.00035068,8]
[360013187,1746478265833,-400.0,0.00035068,8]
[360013188,1746478265843,-358.0,0.00035068,8]
[360013189,1746478265852,-480.6094146,0.00035068,8]
[360013190,1746478265861,-400.0,0.00035068,8]
[360013191,1746478265871,-4121.14,0.00035068,8]
[360013192,1746478265881,-400.0,0.00035068,8]
[360013193,1746478265891,-812.34,0.00035068,8]
[360013194,1746478265901,-654.51,0.00035068,8]
[360013195,1746478265910,-730.71,0.00035068,8]
[360013196,1746478265919,-353.95604588,0.00035068,8]
[360013197,1746478265929,-400.0,0.00035068,8]
[360013198,1746478265939,-400.0,0.00035068,8]
[360013199,1746478265948,-400.0,0.00035068,8]
[360013200,1746478265958,-400.0,0.00035068,8]
[360013201,1746478265972,-2752.23,0.00035068,2]
[360013202,1746478265982,-400.0,0.00035068,8]
[360013203,1746478265992,-432.56,0.00035068,8]
[360013204,1746478266002,-762.68,0.00035068,8]
[360013205,1746478266012,-431.94,0.00035068,8]
[360013206,1746478266022,-436.54,0.00035068,8]
[360013207,1746478266031,-400.0,0.00035068,8]
[360013208,1746478266042,-673.29,0.00035068,8]
[360013209,1746478266051,-1252.09,0.00035068,8]
[360013210,1746478266060,-702.93,0.00035068,8]
[360013211,1746478266069,-479.32313514,0.00035068,8]
[360013212,1746478266079,-400.0,0.00035068,8]
[360013213,1746478266088,-1335.89,0.00035068,8]
[360013214,1746478266097,-400.0,0.00035068,8]
[360013215,1746478266106,-409.22,0.00035068,8]
[360013216,1746478266115,-400.0,0.00035068,8]
[360013217,1746478266124,-990.15,0.00035068,8]
[360013218,1746478266133,-400.0,0.00035068,8]
[360013219,1746478266143,-400.0,0.00035068,8]
[360013220,1746478266152,-784.71,0.00035068,8]
[360013221,1746478266161,-624.56,0.00035068,8]
[360013222,1746478266170,-411.93,0.00035068,8]
[360013223,1746478266180,-446.32,0.00035068,8]
[360013224,1746478266189,-500.9,0.00035068,8]
[360013225,1746478266198,-827.29,0.00035068,8]
[360013226,1746478266207,-530.84,0.00035068,8]
[360013227,1746478266217,-693.82,0.00035068,8]
[360013228,1746478266226,-612.41,0.00035068,8]
[360013229,1746478266235,-400.0,0.00035068,8]
[360013230,1746478266245,-461.37,0.00035068,8]
[360013231,1746478266254,-430.1,0.00035068,8]
[360013232,1746478266263,-400.0,0.00035068,8]
[360013233,1746478266273,-563.39,0.00035068,8]
[360013234,1746478266282,-400.0,0.00035068,8]
[360013235,1746478266291,-400.0,0.00035068,8]
[360013236,1746478266301,-400.0,0.00035068,8]
[360013237,1746478266311,-2969.31,0.00035068,8]
[360013238,1746478266320,-400.0,0.00035068,8]
[360013239,1746478266329,-401.12,0.00035068,8]
[360013240,1746478266339,-434.66318956,0.00035068,8]
[360013241,1746478266348,-400.0,0.00035068,8]
[360013242,1746478266358,-3050.13,0.00035068,8]
[360013243,1746478266367,-2910.47,0.00035068,8]
[360013244,1746478266376,-773.72,0.00035068,8]
[360013245,1746478266385,-151.0,0.00035068,14]
[360013246,1746478266395,-1317.05,0.00035068,8]
[360013247,1746478266404,-2598.82,0.00035068,8]
[360013248,1746478266414,-400.0,0.00035068,8]
[360013249,1746478266423,-417.65,0.00035068,8]
[360013250,1746478266432,-552.03,0.00035068,8]
[360013251,1746478266441,-400.0,0.00035068,8]
[360013252,1746478266451,-303.430025,0.00035068,14]
[360013253,1746478266460,-400.0,0.00035068,8]
[360013254,1746478266470,-510.92,0.00035068,8]
[360013255,1746478266480,-2556.58,0.00035068,8]
[360013256,1746478266489,-303.430025,0.00035068,14]
[360013257,1746478266499,-400.0,0.00035068,8]
[360013258,1746478266508,-717.05,0.00035068,8]